[Event "45th FIDE Olympiad 2024"]
[Site "Budapest"]
[Date "2024.09.12"]
[Round "2.13"]
[White "Ding, Liren"]
[Black "Henriquez Villagra, Cristobal"]
[Result "1/2-1/2"]
[ECO "B62"]
[WhiteElo "2736"]
[BlackElo "2604"]
[Annotator "TA"]
[PlyCount "65"]
[EventDate "2024.09.05"]
[EventType "team-tourn"]
[EventCountry "HUN"]
[SourceTitle "playchess.com"]
[Source "ChessBase"]
[SourceQuality "1"]
[WhiteTeam "China"]
[BlackTeam "Chile"]
[WhiteTeamCountry "CHN"]
[BlackTeamCountry "CHI"]
[TimeControl "40/5400+30:1800+30"]

{[%evp 17,65,37,70,47,41,35,33,29,31,18,36,35,47,64,60,54,54,50,52,64,61,40,72,51,62,58,64,43,66,58,82,49,18,29,75,27,27,36,37,35,19,29,33,0,38,9,48,61,72,43]} 1. e4 {[%emt 0:00:06]} c5 {[%emt 0:05:24]} 2. Nf3 {[%emt 0:00:10]} d6 {[%emt 0:00:21]} 3. d4 {[%emt 0:00:05]} cxd4 {[%emt 0:00:05]} 4. Nxd4 {[%emt 0:00:03]} Nf6 {[%emt 0:00:05]} 5. Nc3 {[%emt 0:00:04]} Nc6 {[%emt 0:00:18]} 6. Bg5 {[%emt 0:00:42]} e6 {[%emt 0:00:41]} 7. Qd3 {[%emt 0:02:24]} Bd7 {[%emt 0:11:40]} 8. O-O-O {[%emt 0:01:22]} a6 {[%emt 0:10:21]} 9. f4 {[%emt 0:00:34]} Qc7 {[%emt 0:11:22]} 10. Kb1 {[%emt 0:06:00] White is more active.} Be7 {[%emt 0:04:32]} 11. Nf3 {[%emt 0:06:03]} Rd8 {[%emt 0:03:08]} 12. Qd2 {[%emt 0:11:11] White is slightly better.} b5 {[%emt 0:04:55][%cal Bb7b5,Bb5b4][%mdl 32]} 13. Bd3 {[%emt 0:00:14]} b4 {[%emt 0:04:51]} 14. Ne2 {[%emt 0:00:12][%cal Of4f5]} a5 {[%emt 0:00:22][%cal Ba6a5,Ba5a4,Ba4a3][%mdl 32]} 15. Ng3 {[%emt 0:04:06]} a4 {[%emt 0:04:26]} 16. Bxf6 $1 {[%emt 0:04:27]} Bxf6 {[%emt 0:11:06]} 17. Nh5 {[%emt 0:00:06]} a3 {[%emt 0:01:58]} 18. Nxf6+ {[%emt 0:00:15]} gxf6 {[%emt 0:00:04]} 19. b3 {[%emt 0:00:16]} Qa5 {[%emt 0:01:07]} 20. Rhe1 {[%emt 0:07:30][%cal Bh1e1,Be1e3,Be3d3,Bd3d4][%mdl 32]} Qc5 {[%emt 0:00:50]} 21. Bc4 {[%emt 0:01:02]} Bc8 {[%emt 0:03:29]} 22. Re3 {[%emt 0:06:42]} h5 {[%emt 0:00:40]} 23. Rd3 {[%emt 0:04:26]} Ke7 {[%emt 0:01:06]} 24. Nd4 {[%emt 0:00:06]} (24. e5 {looks sharper.} fxe5 25. fxe5 d5 26. Nd4) 24... Nxd4 {[%emt 0:09:22]} 25. Rxd4 {[%emt 0:00:04]} Bb7 {[%emt 0:00:21]} (25... Rhg8 $11 {was preferrable.}) 26. Be2 {[%emt 0:05:35]} (26. g3 $16) 26... Qc3 $11 {[%emt 0:00:13]} 27. Qc1 $36 {[%emt 0:01:29][%mdl 2048] Repels Qb2+. White is more active.} d5 {[%emt 0:00:31] Prevents Rc4.} 28. exd5 {[%emt 0:01:23]} Bxd5 {[%emt 0:01:52]} 29. R1d3 {[%emt 0:00:07]} Qc5 {[%emt 0:00:55]} 30. Qd2 {[%emt 0:00:17]} (30. Qe3 $5) 30... Rb8 {[%emt 0:00:57]} 31. f5 {[%emt 0:09:01]} Rhg8 {[%emt 0:01:47]} 32. g3 {[%emt 0:01:41]} (32. Bxh5 $2 {is the wrong capture.} Rxg2 33. Rxd5 Qg1+ 34. Qd1 Qxd1+ (34... exd5 $2 35. Bf3 $19) 35. Bxd1 exd5 $19) 32... Rg5 {[%emt 0:00:53]} 33. fxe6 {[%emt 0:07:27] Weighted Error Value: White=0.11 (very precise) /Black=0.15 (very precise) .  Mistake:       	White=1     	Black=1      Inaccurate:     	White=4     	Black=3      OK:         	White=8     	Black=7      Best:        	White=1     	Black=1      Strong:       	White=1     	---} 1/2-1/2

[Event "45th FIDE Olympiad 2024"]
[Site "Budapest"]
[Date "2024.09.12"]
[Round "2.13"]
[White "Mathurin, Nathaniel"]
[Black "Ferster, Fabian"]
[Result "1/2-1/2"]
[ECO "D85"]
[WhiteElo "1982"]
[BlackElo "2184"]
[Annotator "ChessBase"]
[PlyCount "76"]
[EventDate "2024.09.05"]
[EventType "team-tourn"]
[EventCountry "HUN"]
[SourceTitle "playchess.com"]
[Source "ChessBase"]
[SourceQuality "1"]
[WhiteTeam "Saint Lucia"]
[BlackTeam "Liechtenstein"]
[BlackTeamCountry "LIE"]
[TimeControl "40/5400+30:1800+30"]

1. d4 Nf6 2. Nf3 g6 3. c4 Bg7 4. Nc3 d5 5. h3 O-O 6. cxd5 Nxd5 7. e4 Nxc3 8. bxc3 c5 9. Be2 Nc6 10. Be3 cxd4 11. cxd4 Qa5+ 12. Bd2 Qa3 13. d5 Ne5 14. Nxe5 Bxe5 15. O-O Bd7 16. Rb1 Ba4 17. Qc1 Qxa2 18. Bc4 Qc2 19. Qxc2 Bxc2 20. Rxb7 Rfc8 21. Ba6 Bd6 22. Re1 Rcb8 23. e5 Ba3 24. Re3 Rxb7 25. Bxb7 Rb8 26. Bc6 Rb3 27. Rxb3 Bxb3 28. Bf4 f6 29. d6 exd6 30. exd6 Bb4 31. Bb5 Kf7 32. d7 Ba5 33. Be3 a6 34. Bxa6 Ba4 35. Bc8 Bd8 36. Bd4 Ke6 37. Bb6 Bxd7 38. Bxd8 Bxc8 1/2-1/2

[Event "45th FIDE Olympiad 2024"]
[Site "Budapest"]
[Date "2024.09.12"]
[Round "2.14"]
[White "Salinas Herrera, Pablo"]
[Black "Yu, Yangyi"]
[Result "0-1"]
[ECO "B83"]
[WhiteElo "2479"]
[BlackElo "2703"]
[Annotator "TA"]
[PlyCount "108"]
[EventDate "2024.09.05"]
[EventType "team-tourn"]
[EventCountry "HUN"]
[SourceTitle "playchess.com"]
[Source "ChessBase"]
[SourceQuality "1"]
[WhiteTeam "Chile"]
[BlackTeam "China"]
[WhiteTeamCountry "CHI"]
[BlackTeamCountry "CHN"]
[TimeControl "40/5400+30:1800+30"]

{[%evp 27,108,-70,-79,-73,-77,-66,-65,-79,-67,-79,-31,-54,-46,-78,-90,-76,-98,-98,-82,-114,-74,-81,-84,-102,-115,-97,-104,-102,-41,-119,-127,-176,-184,-209,-128,-108,-89,-94,-106,-178,-201,-229,-214,-225,-126,-174,-36,-359,-293,-398,-390,-427,-293,-435,-431,-393,-414,-300,-237,-580,-630,-634,-632,-1285,-1074,-1314,-1284,-5401,-4875,-6207,-5600,-5791,-5401,-29978,-29979,-29979,-29980,-29981,-29982,-29982,-29983,-29986,-29987]} 1. e4 {[%emt 0:05:35]} c5 {[%emt 0:00:16]} 2. Nf3 {[%emt 0:00:05]} e6 {[%emt 0:00:18]} 3. Be2 {[%emt 0:01:58]} Nc6 {[%emt 0:00:37]} 4. O-O {[%emt 0:00:06]} Nf6 {[%emt 0:02:18]} 5. Nc3 {[%emt 0:00:04]} d6 {[%emt 0:04:05]} 6. d4 {[%emt 0:00:10]} cxd4 {[%emt 0:00:12]} 7. Nxd4 {[%emt 0:00:05]} Be7 {[%emt 0:00:11]} 8. Nxc6 {[%emt 0:01:21]} bxc6 {[%emt 0:00:20]} 9. Qd3 {[%emt 0:00:05] B83: Sicilian Scheveningen: 6 Be2, lines without ...a6.} O-O {[%emt 0:03:16]} 10. Qg3 {[%emt 0:00:55]} e5 {[%emt 0:02:44]} 11. f4 {[%emt 0:17:26]} Nd7 {[%emt 0:22:45]} 12. Bg4 $146 {[%emt 0:31:49]} ({Predecessor:} 12. f5 Kh8 13. b3 Qa5 14. Kh1 d5 15. Bd2 d4 16. Nb1 Qc5 17. c3 Bf6 18. b4 Qe7 19. c4 c5 20. b5 {½-½ Dinic,D (2187)-Pavlidou,E (2189) Paracin Orbis IM 02 2022 (2)}) 12... Bh4 {[%emt 0:12:58]} 13. Qh3 {[%emt 0:01:54]} Bf6 {[%emt 0:00:11]} 14. Ne2 {[%emt 0:02:32]} exf4 {[%emt 0:06:07]} 15. Bxf4 {[%emt 0:08:43]} Bxb2 {[%emt 0:01:24]} 16. Rad1 {[%emt 0:00:29]} Nf6 {[%emt 0:08:39]} 17. Bxc8 {[%emt 0:02:32]} Qxc8 {[%emt 0:01:45]} 18. Qb3 {[%emt 0:07:08] [#]} Rb8 {[%emt 0:04:18]} (18... Be5 $1 $17 19. Bxe5 dxe5) 19. Qa4 {[%emt 0:00:08]} Be5 {[%emt 0:09:43]} 20. Bxe5 {[%emt 0:00:04]} dxe5 {[%emt 0:00:05]} 21. Ng3 {[%emt 0:00:52]} Qc7 {[%emt 0:03:27]} 22. h3 {[%emt 0:04:13]} Rfd8 {[%emt 0:02:05]} 23. Nf5 {[%emt 0:00:47]} g6 {[%emt 0:07:43]} 24. Qxc6 {[%emt 0:05:06]} Qxc6 {[%emt 0:00:09]} 25. Ne7+ {[%emt 0:00:03]} Kg7 {[%emt 0:00:06]} 26. Nxc6 {[%emt 0:00:03]} Rxd1 {[%emt 0:00:06]} 27. Rxd1 {[%emt 0:00:08]} Rc8 {[%emt 0:02:18]} (27... Rb5 $17 28. Nxa7 Rc5) 28. Nxa7 {[%emt 0:00:18]} (28. Nxe5 $15 Rxc2 (28... Nxe4 29. Rd7 $11) 29. Rb1) 28... Rxc2 $17 {[%emt 0:00:04]} 29. a4 {[%emt 0:01:48]} (29. Re1 $17) 29... Nxe4 $19 {[%emt 0:00:37]} 30. a5 {[%emt 0:02:26]} Ra2 {[%emt 0:01:46]} 31. Nc6 {[%emt 0:00:05]} f6 {[%emt 0:00:03]} 32. Rd7+ {[%emt 0:01:58]} Kh6 {[%emt 0:00:01]} 33. Rb7 {[%emt 0:04:01]} (33. Kh2 $17) 33... Kg5 $19 {[%emt 0:00:06]} 34. Rb4 {[%emt 0:00:19]} Kf4 {[%emt 0:01:11]} 35. Kh2 {[%emt 0:00:45]} f5 {[%emt 0:03:31]} (35... g5 $19 {White must now prevent ...h5.} 36. Rb1 Nd2) 36. Rc4 {[%emt 0:01:52]} (36. h4 $17 {might work better.}) 36... h5 {[%emt 0:00:58]} (36... g5 $19 {aiming for ...h5.} 37. Rc1 Nd2) 37. Ne7 $2 {[%emt 0:00:24][%mdl 8192]} (37. h4 $1 $15) 37... Rxa5 $19 {[%emt 0:00:56]} 38. Nxg6+ {[%emt 0:00:02]} Kg5 {[%emt 0:00:11]} 39. Rc6 {[%emt 0:00:25]} h4 {[%emt 0:00:58]} 40. Re6 {[%emt 0:01:09]} Nc5 {[%emt 0:00:52]} 41. Rc6 {[%emt 0:30:05]} Nd3 {[%emt 0:03:54]} 42. Nf8 {[%emt 0:00:00]} f4 {[%emt 0:04:53]} 43. Nh7+ $2 {[%emt 0:00:00]} (43. Ne6+ {nothing else works.} Kf5 44. Ng7+ Ke4 45. Nh5) 43... Kf5 $19 {[%emt 0:00:32]} 44. Rf6+ {[%emt 0:00:00]} Ke4 {[%emt 0:00:07]} 45. Rd6 {[%emt 0:00:00]} Ke3 {[%emt 0:10:05]} 46. Nf6 {[%emt 0:00:00]} e4 {[%emt 0:01:35]} 47. Re6 {[%emt 0:00:00]} Nf2 {[%emt 0:02:14]} 48. Ng4+ {[%emt 0:00:00]} Nxg4+ {[%emt 0:00:13]} 49. hxg4 {[%emt 0:00:00]} Kd4 {[%emt 0:01:59]} 50. Rf6 {[%emt 0:00:00]} e3 {[%emt 0:01:03]} ({Weaker is} 50... Ke3 51. Kh3 $17) 51. Rxf4+ {[%emt 0:00:00]} Kd3 {[%emt 0:00:01]} 52. Rf3 {[%emt 0:00:00]} Kd2 {[%emt 0:01:13]} 53. Rf8 {[%emt 0:00:00]} Ra3 {[%emt 0:01:21]} 54. Rf3 {[%emt 0:00:00]} Rd3 {[%emt 0:00:57]} 0-1

[Event "45th FIDE Olympiad 2024"]
[Site "Budapest"]
[Date "2024.09.12"]
[Round "2.14"]
[White "Heron, Andrew"]
[Black "Gabriel, Sixtus"]
[Result "1-0"]
[ECO "B18"]
[WhiteElo "2026"]
[BlackElo "1800"]
[Annotator "NA"]
[PlyCount "111"]
[EventDate "2024.09.05"]
[EventType "team-tourn"]
[EventCountry "HUN"]
[SourceTitle "playchess.com"]
[Source "ChessBase"]
[SourceQuality "1"]
[WhiteTeam "Liechtenstein"]
[BlackTeam "Saint Lucia"]
[WhiteTeamCountry "LIE"]
[TimeControl "40/5400+30:1800+30"]

1. e4 c6 2. Nf3 d5 3. Nc3 dxe4 4. Nxe4 Bf5 5. Ng3 Bg6 6. d4 e6 7. c3 Nf6 8. Qb3 b6 9. Ne5 Bd6 10. Bg5 Qc7 11. Bxf6 gxf6 12. Nc4 h5 13. Nxd6+ Qxd6 14. h4 Nd7 15. Be2 f5 16. Bf3 Nf6 17. Ne2 f4 18. Qd1 O-O-O 19. Qc1 Nd5 20. Bxd5 exd5 21. Qxf4 Rhe8 22. Qxd6 Rxd6 23. Kd2 Rf6 24. Raf1 Kd7 25. f3 c5 26. Rf2 Kd6 27. Re1 a5 28. Rff1 a4 29. a3 Kc6 30. g3 Kb5 31. dxc5 Kxc5 32. Nd4 Rxe1 33. Rxe1 Kd6 34. Re8 Bf5 35. Rh8 Bg6 36. Rd8+ Ke7 37. Rxd5 Bb1 38. Rxh5 Ba2 39. Rh6 Bc4 40. Rxf6 Kxf6 41. Ke3 Ke5 42. g4 Ba6 43. h5 Kf6 44. Kf4 Bd3 45. g5+ Kg7 46. Nf5+ Kh7 47. Ke5 b5 48. Kf6 Kg8 49. Nh6+ Kf8 50. Nxf7 b4 51. cxb4 Bc4 52. h6 Kg8 53. g6 Bxf7 54. h7+ Kh8 55. g7+ Kxh7 56. Kxf7 1-0

[Event "45th FIDE Olympiad 2024"]
[Site "Budapest"]
[Date "2024.09.12"]
[Round "2.15"]
[White "Bu, Xiangzhi"]
[Black "Vasquez Schroeder, Rodrigo"]
[Result "1-0"]
[ECO "E65"]
[WhiteElo "2693"]
[BlackElo "2457"]
[Annotator "TA"]
[PlyCount "65"]
[EventDate "2024.09.05"]
[EventType "team-tourn"]
[EventCountry "HUN"]
[SourceTitle "playchess.com"]
[Source "ChessBase"]
[SourceQuality "1"]
[WhiteTeam "China"]
[BlackTeam "Chile"]
[WhiteTeamCountry "CHN"]
[BlackTeamCountry "CHI"]
[TimeControl "40/5400+30:1800+30"]

{[%evp 17,65,21,13,7,66,50,40,41,72,57,60,54,54,56,78,65,70,71,108,116,104,111,122,84,83,14,11,14,66,60,96,94,136,139,164,175,184,121,155,0,0,0,163,161,331,329,302,0,274,244]} 1. d4 {[%emt 0:00:06]} Nf6 {[%emt 0:05:06]} 2. c4 {[%emt 0:00:14]} g6 {[%emt 0:00:12]} 3. g3 {[%emt 0:00:36]} Bg7 {[%emt 0:01:08]} 4. Bg2 {[%emt 0:00:16]} O-O {[%emt 0:00:08]} 5. Nc3 {[%emt 0:00:18]} d6 {[%emt 0:00:16]} 6. Nf3 {[%emt 0:00:33]} c5 {[%emt 0:00:25]} 7. O-O {[%emt 0:01:49]} Nc6 {[%emt 0:00:15]} 8. dxc5 {[%emt 0:08:39]} dxc5 {[%emt 0:00:08]} 9. Bf4 {[%emt 0:00:09]} Nh5 {[%emt 0:02:34]} 10. Bg5 {[%emt 0:05:26]} h6 {[%emt 0:18:17]} (10... Be6 $11) 11. Be3 $14 {[%emt 0:01:19]} Nd4 {[%emt 0:06:48]} 12. Qd2 {[%emt 0:02:51] White is slightly better.} Kh7 {[%emt 0:06:23]} 13. Rad1 {[%emt 0:10:07]} e5 {[%emt 0:00:29] [#]} 14. b4 $1 {[%emt 0:00:29]} cxb4 {[%emt 0:06:27]} (14... Nxf3+ 15. Bxf3) 15. Nb5 {[%emt 0:17:41][%cal Rf3d4]} (15. Bxd4 {simplifies} bxc3 16. Bxc3 Qxd2 17. Nxd2 f5 18. c5) 15... Qe7 {[%emt 0:09:24]} 16. Nfxd4 {[%emt 0:03:32]} exd4 {[%emt 0:00:41]} 17. Bxd4 {[%emt 0:00:24]} Rd8 {[%emt 0:05:33] ...a6 would now be deadly.} 18. Qe3 $1 {[%emt 0:09:23]} Qxe3 {[%emt 0:02:47]} 19. fxe3 {[%emt 0:23:10] aiming for Nc7.} Be6 {[%emt 0:03:04]} 20. Bxb7 {[%emt 0:01:23] White is much more active.} (20. Nxa7 Bxc4 (20... Bxd4 $2 21. Rxd4 Rxd4 22. exd4 $19) 21. Bc5 Rxd1 (21... Bxe2 22. Rxd8 Rxd8 23. Rxf7 $11) 22. Rxd1 Bxa2 $15) 20... Rab8 {[%emt 0:04:09] [#]} 21. Bxg7 {[%emt 0:06:04]} (21. Bxa7 Bxc4 (21... Rxd1 22. Bxb8 Rd8 23. Bc7 $14) 22. Bxb8 Rxb8 $11) ({Better is} 21. Bf3 $1 $16) 21... Rxd1 $11 {[%emt 0:02:28]} 22. Rxd1 {[%emt 0:00:02]} Rxb7 {[%emt 0:07:03]} ({Black should play} 22... Kxg7 $11 23. Bd5 Bxd5 24. Rxd5 Nf6) 23. Bb2 $14 {[%emt 0:00:42]} (23. Nd6 Rd7 (23... Rc7 24. Bb2 $16) 24. Bb2 Bxc4 $17) 23... a6 {[%emt 0:13:27] [#]} (23... Bxc4 $2 {perishes.} 24. Rd8 g5 25. Nd6 $18) 24. Rd8 $1 $36 {[%emt 0:02:53][%csl Gb2][%cal Rd8h8][%mdl 2048] White is on the roll.} g5 {[%emt 0:00:17]} (24... Ng7 25. Nd6) 25. Nd6 {[%emt 0:01:57]} Rc7 {[%emt 0:00:59]} 26. Bd4 {[%emt 0:00:59]} Rd7 {[%emt 0:01:52]} 27. Rh8+ {[%emt 0:02:03]} Kg6 {[%emt 0:00:04]} 28. Rg8+ {[%emt 0:00:04]} Kh7 {[%emt 0:00:06]} 29. Rh8+ {[%emt 0:00:02]} Kg6 {[%emt 0:00:05]} 30. c5 {[%emt 0:00:02]} Rc7 $2 {[%emt 0:01:35]} (30... Ng7 {is a better defense.} 31. Rb8 Bxa2) 31. Rg8+ {[%emt 0:00:11]} Kh7 {[%emt 0:00:07]} 32. Rh8+ {[%emt 0:00:05]} Kg6 {[%emt 0:00:08]} 33. Rb8 {[%emt 0:00:28] Weighted Error Value: White=0.31/Black=0.28 (precise) .  Loses game:     	---       	Black=2      Mistake:       	White=1     	Black=3      Inaccurate:     	White=1     	Black=4      OK:         	White=11    	Black=6      Best:        	White=1     	Black=3      Strong:       	White=1     	---} 1-0

[Event "45th FIDE Olympiad 2024"]
[Site "Budapest"]
[Date "2024.09.12"]
[Round "2.15"]
[White "James, Justin"]
[Black "Frick, Renato"]
[Result "1-0"]
[ECO "C83"]
[WhiteElo "1745"]
[BlackElo "1925"]
[Annotator "NA"]
[PlyCount "81"]
[EventDate "2024.09.05"]
[EventType "team-tourn"]
[EventCountry "HUN"]
[SourceTitle "playchess.com"]
[Source "ChessBase"]
[SourceQuality "1"]
[WhiteTeam "Saint Lucia"]
[BlackTeam "Liechtenstein"]
[BlackTeamCountry "LIE"]
[TimeControl "40/5400+30:1800+30"]

1. e4 e5 2. Nf3 Nc6 3. Bb5 a6 4. Ba4 Nf6 5. O-O Nxe4 6. d4 b5 7. Bb3 d5 8. dxe5 Be6 9. c3 Be7 10. Be3 g5 11. Nd4 Nxe5 12. Nxe6 fxe6 13. f4 gxf4 14. Bd4 Bc5 15. Nd2 Bxd4+ 16. cxd4 Nxd2 17. Qxd2 Ng6 18. Qe2 Qf6 19. Kh1 Kd7 20. Qd3 c6 21. Rac1 Rac8 22. Qc3 Qd8 23. Bd1 a5 24. Qc5 Qc7 25. Bg4 Rhf8 26. Rce1 Rce8 27. Re2 Rf6 28. Rfe1 Nf8 29. Re5 Kc8 30. Qc2 Kb7 31. Qd3 Qd6 32. a3 Kb6 33. h3 Re7 34. Qc3 Nd7 35. R5e2 c5 36. dxc5+ Qxc5 37. Qd2 Nf8 38. b4 axb4 39. axb4 Qd6 40. Qd4+ Kb7 41. Qxf6 1-0

[Event "45th FIDE Olympiad 2024"]
[Site "Budapest"]
[Date "2024.09.12"]
[Round "2.16"]
[White "Lopez Silva, Hugo"]
[Black "Wang, Yue"]
[Result "0-1"]
[ECO "B13"]
[WhiteElo "2379"]
[BlackElo "2637"]
[Annotator "TA"]
[PlyCount "68"]
[EventDate "2024.09.05"]
[EventType "team-tourn"]
[EventCountry "HUN"]
[SourceTitle "playchess.com"]
[Source "ChessBase"]
[SourceQuality "1"]
[WhiteTeam "Chile"]
[BlackTeam "China"]
[WhiteTeamCountry "CHI"]
[BlackTeamCountry "CHN"]
[TimeControl "40/5400+30:1800+30"]

{[%evp 24,68,27,17,25,10,15,3,33,14,25,26,22,24,33,0,0,0,0,0,17,0,32,0,0,0,30,28,30,18,42,38,30,36,41,0,0,-81,-61,-193,-202,-258,-267,-418,-454,-475,-474]} 1. e4 {[%emt 0:05:44]} c6 {[%emt 0:00:22]} 2. d4 {[%emt 0:00:40]} d5 {[%emt 0:00:06]} 3. exd5 {[%emt 0:00:04]} cxd5 {[%emt 0:00:08]} 4. Bd3 {[%emt 0:00:05]} Nc6 {[%emt 0:00:37]} 5. c3 {[%emt 0:00:08]} Nf6 {[%emt 0:01:30]} 6. Bf4 {[%emt 0:01:45]} Bg4 {[%emt 0:01:43]} 7. Qb3 {[%emt 0:01:01]} Qd7 {[%emt 0:00:23]} 8. Nd2 {[%emt 0:00:59]} e6 {[%emt 0:00:15]} 9. Ngf3 {[%emt 0:00:13]} Bd6 {[%emt 0:00:37]} 10. Bxd6 {[%emt 0:01:04]} Qxd6 {[%emt 0:00:08]} 11. O-O {[%emt 0:00:05]} O-O {[%emt 0:00:21]} 12. Rae1 {[%emt 0:08:21]} Bxf3 {[%emt 0:14:22]} 13. Nxf3 {[%emt 0:00:33][%cal Of3e5]} Qc7 {[%emt 0:00:03]} 14. Re3 {[%emt 0:20:36]} Rab8 {[%emt 0:09:35]} 15. Qc2 {[%emt 0:09:42]} g6 {[%emt 0:07:46] The position is equal.} 16. a4 {[%emt 0:12:12]} Kg7 {[%emt 0:05:18]} 17. Qd2 {[%emt 0:04:03]} a6 {[%emt 0:12:52]} 18. Rfe1 {[%emt 0:03:35]} Rh8 {[%emt 0:01:35]} 19. Ne5 {[%emt 0:08:52]} Nxe5 {[%emt 0:04:48]} 20. dxe5 {[%emt 0:00:55]} Nd7 {[%emt 0:00:05]} 21. Rh3 {[%emt 0:01:41]} h6 {[%emt 0:03:48]} 22. Rg3 {[%emt 0:05:23]} Qd8 {[%emt 0:09:00]} (22... Nxe5 $2 23. Qf4 $18) 23. Qf4 {[%emt 0:04:53]} Qe7 {[%emt 0:02:23]} 24. h4 {[%emt 0:01:22][%cal Bh2h4,Bh4h5][%mdl 32]} Rbc8 {[%emt 0:03:36]} 25. h5 {[%emt 0:04:11]} g5 {[%emt 0:01:43]} 26. Qd4 {[%emt 0:02:07]} (26. Rg4 {is more complex.} Rhg8 27. Qf3 Qd8 28. Rd4) 26... Nc5 {[%emt 0:04:47]} 27. Bc2 {[%emt 0:02:47]} Nd7 {[%emt 0:04:43]} 28. f4 {[%emt 0:00:57]} Rc4 {[%emt 0:01:31]} 29. Qf2 {[%emt 0:00:26]} Kf8 $1 {[%emt 0:03:31]} 30. fxg5 {[%emt 0:00:34]} (30. f5 $11) 30... hxg5 $17 {[%emt 0:00:11]} 31. Rf3 {[%emt 0:00:31] This costs White the game.} (31. Rh3 $15) 31... g4 $1 $19 {[%emt 0:00:59]} (31... Rxh5 $2 {too greedy.} 32. Bg6 $18) 32. Rf4 {[%emt 0:00:30]} Rxh5 {[%emt 0:01:14]} 33. Bg6 {[%emt 0:00:23]} (33. Rxc4 $142 dxc4 34. b4) 33... Rxf4 {[%emt 0:02:13]} ({And not} 33... Rxe5 34. Rxf7+ (34. Bxf7 Rxf4 35. Qd2 Rxe1+ 36. Qxe1 Rxf7 37. g3 Qf6 38. Qe2 Ne5 39. Kh1 Qh6+ 40. Kg1 Nf3+ 41. Kf2 Nd4+ 42. Ke1 Qc1+ 43. Qd1 Qe3+) 34... Kg8 35. Rxe7 Rxe1+ 36. Qxe1) 34. Qxf4 {[%emt 0:00:02] [#]} Rh1+ $3 {[%emt 0:00:20][%mdl 512] Weighted Error Value: White=0.34/Black=0.08 (flawless) .  Mistake:       	White=3     	---        Inaccurate:     	White=3     	Black=3      OK:         	White=4     	Black=9      Strong:       	---       	Black=2      Brilliant:      	---       	Black=1} 0-1

[Event "45th FIDE Olympiad 2024"]
[Site "Budapest"]
[Date "2024.09.12"]
[Round "2.16"]
[White "Schadler, Martin"]
[Black "Elizee, Kaieem"]
[Result "1/2-1/2"]
[ECO "E07"]
[WhiteElo "1891"]
[BlackElo "1701"]
[Annotator "NA"]
[PlyCount "46"]
[EventDate "2024.09.05"]
[EventType "team-tourn"]
[EventCountry "HUN"]
[SourceTitle "playchess.com"]
[Source "ChessBase"]
[SourceQuality "1"]
[WhiteTeam "Liechtenstein"]
[BlackTeam "Saint Lucia"]
[WhiteTeamCountry "LIE"]
[TimeControl "40/5400+30:1800+30"]

1. d4 Nf6 2. c4 e6 3. Nc3 d5 4. Nf3 Nbd7 5. g3 Be7 6. Bg2 O-O 7. O-O c6 8. Qc2 b6 9. e4 dxe4 10. Nd2 Bb7 11. Ndxe4 Nxe4 12. Nxe4 Nf6 13. Be3 Nxe4 14. Bxe4 g6 15. Rad1 Qc7 16. c5 Bf6 17. Bf4 Qd7 18. b4 Rfd8 19. Bd6 Be7 20. Bf4 Bf6 21. Bd6 Be7 22. Bf4 Bf6 23. Bd6 Be7 1/2-1/2